fUST/lending_fUST_20250311
["ID","MTS","AMOUNT","RATE_DAILY","PERIOD"]
[355864853,1741645839978,-203.82485185,0.00048799,2]
[355864854,1741645839988,-500.0,0.00048799,2]
[355864856,1741645839998,-500.0,0.00048799,2]
[355864858,1741645840007,-500.0,0.00048799,2]
[355864859,1741645840017,-500.0,0.00048799,2]
[355864860,1741645840026,-500.0,0.00048799,2]
[355864861,1741645840036,-500.0,0.00048799,2]
[355864862,1741645840046,-500.0,0.00048799,2]
[355864863,1741645840056,-500.0,0.00048799,2]
[355864864,1741645840066,-500.0,0.00048799,2]
[355864865,1741645840076,-500.0,0.00048799,2]
[355864866,1741645840086,-500.0,0.00048799,2]
[355864867,1741645840096,-500.0,0.00048799,2]
[355864868,1741645840105,-500.0,0.00048799,2]
[355864869,1741645840115,-500.0,0.00048799,2]
[355864870,1741645840125,-500.0,0.00048799,2]
[355864871,1741645840135,-590.56073626,0.00048799,2]
[355864872,1741645840145,-2109.0,0.00048799,2]
[355864873,1741645840155,-2109.0,0.00048799,2]
[355864874,1741645840164,-2109.0,0.00048799,2]
[355864875,1741645840174,-2109.0,0.00048799,2]
[355864876,1741645840184,-2109.0,0.00048799,2]
[355864877,1741645840194,-2109.0,0.00048799,2]
[355864878,1741645840204,-2109.0,0.00048799,2]
[355864879,1741645840214,-2109.0,0.00048799,2]
[355864880,1741645840223,-2109.0,0.00048799,2]
[355864881,1741645840233,-2109.0,0.00048799,2]
[355864882,1741645840243,-2109.0,0.00048799,2]
[355864883,1741645840252,-2109.0,0.00048799,2]
[355864884,1741645840262,-2109.0,0.00048799,2]
[355864885,1741645840272,-2109.0,0.00048799,2]
[355864886,1741645840282,-2109.0,0.00048799,2]
[355864887,1741645840291,-2109.0,0.00048799,2]
[355864888,1741645840301,-2109.0,0.00048799,2]
[355864889,1741645840312,-2109.0,0.00048799,2]
[355864890,1741645840322,-2109.0,0.00048799,2]
[355864891,1741645840331,-2121.65695463,0.00048799,2]
[355864892,1741645840341,-150.47,0.00048799,2]
[355864893,1741645840351,-150.47,0.00048799,2]
[355864894,1741645840361,-276.72948267,0.00048799,2]
[355864895,1741645840370,-150.47,0.00048799,2]
[355864896,1741645840379,-500.0,0.00048799,2]
[355864897,1741645840389,-697.32916461,0.00048799,2]
[355864898,1741645840400,-150.47,0.00048799,2]
[355864899,1741645840410,-150.47,0.00048799,2]
[355864900,1741645840420,-150.47,0.00048799,2]
[355864901,1741645840429,-262.19258298,0.00048799,2]
[355864902,1741645840439,-158.0862398,0.00048799,2]
[355864903,1741645840448,-150.47,0.00048799,2]
[355864904,1741645840458,-150.47,0.00048799,2]
[355864905,1741645840467,-151.0,0.00048799,120]
[355864906,1741645840479,-151.0,0.00048799,120]
[355864907,1741645840490,-257359.9295859,0.00048799,2]
[355864908,1741645840870,-169.0,0.00048,90]
[355864909,1741645840881,-331.0,0.00048799,2]
[355864917,1741645842840,-169.0,0.00048356,90]
[355864918,1741645842850,-1751.46,0.00048789,10]
[355864919,1741645842860,-21822.35351392,0.00048799,2]
[355864936,1741645845013,-17179.163685,0.00048799,2]
[355864937,1741645845431,-1181.66418705,0.00048799,2]
[355864938,1741645845444,-3292.8825748,0.00048799,2]
[355864947,1741645846508,-150.0,0.00046699,2]
[355864948,1741645846519,-1000.0,0.000484,56]
[355864949,1741645846530,-1218.356106,0.00048799,2]
[355864950,1741645847250,-48260.68167539,0.00048799,2]
[355864958,1741646758082,-500.0,0.000301,30]
[355864959,1741646758105,-159.797581,0.0003589,2]
[355864960,1741646758126,-202.28861647,0.00037325,2]
[355864961,1741646758148,-209.65947133,0.00042302,120]
[355864962,1741646758170,-395.4258568,0.00042402,2]
[355864963,1741646758193,-600.0,0.000431,120]
[355864964,1741646758214,-159.797581,0.00043112,2]
[355864965,1741646758235,-158.473811,0.0004617,3]
[355864966,1741646758255,-294.15848073,0.00046699,2]
[355864967,1741646758276,-747.678721,0.00047823,4]
[355864968,1741646758297,-183.442,0.00047823,81]
[355864969,1741646758317,-170.0,0.00048,90]
[355864970,1741646758338,-2000.0,0.00048,30]
[355864971,1741646758358,-169.0,0.00048,90]
[355864972,1741646758379,-227.65570974,0.0004833,28]
[355864973,1741646758400,-716.21616889,0.00048351,2]
[355864974,1741646758420,-500.0,0.00048398,120]
[355864975,1741646758446,-500.0,0.00048399,2]
[355864976,1741646758473,-500.0,0.00048399,2]
[355864977,1741646758497,-500.0,0.00048399,2]
[355864978,1741646758523,-500.0,0.00048399,2]
[355864979,1741646758549,-500.0,0.00048399,2]
[355864980,1741646758574,-500.0,0.00048399,2]
[355864981,1741646758598,-500.0,0.00048399,2]
[355864982,1741646758622,-500.0,0.00048399,2]
[355864983,1741646758646,-183.7829089,0.00048399,2]
[355864984,1741646758671,-464.86476765,0.00048399,2]
[355864985,1741646758698,-500.0,0.00048399,2]
[355864986,1741646758723,-421.44100957,0.00048399,2]
[355864987,1741646758752,-500.0,0.00048399,2]
[355864988,1741646758779,-74.17588347,0.00048399,2]
[355864990,1741646818080,-193.53103335,0.00046299,2]
[355864991,1741646846148,-2.57462047,0.00046299,2]
[355864992,1741646846181,-170.0,0.00048,90]
[355864993,1741646846215,-175.79,0.00048398,30]
[355864994,1741646846247,-800.0,0.00048459,14]
[355864995,1741646846281,-800.0,0.00048473,14]
[355864996,1741646846314,-500.0,0.00048501,6]
[355864997,1741646846347,-800.0,0.00048514,14]
[355864998,1741646846380,-712.234994,0.00048522,100]
[355864999,1741646846414,-2114.86751866,0.00048555,23]
[355865000,1741646846446,-800.0,0.0004858,14]
[355865001,1741646846479,-800.0,0.00048585,14]
[355865002,1741646846512,-638.0,0.000486,30]
[355865003,1741646846545,-800.0,0.00048601,14]
[355865004,1741646846577,-398.0,0.0004861,2]
[355865005,1741646846608,-179.0,0.0004861,2]
[355865006,1741646846638,-291.0,0.0004861,2]
[355865007,1741646846671,-712.234994,0.00048622,93]
[355865008,1741646846702,-500.0,0.00048638,6]
[355865009,1741646846735,-800.0,0.00048668,14]
[355865010,1741646846768,-500.0,0.00048673,10]
[355865011,1741646846802,-500.0,0.00048673,10]
[355865012,1741646846836,-800.0,0.00048685,14]
[355865013,1741646846860,-7125.5142643,0.0004869,4]
[355865014,1741646846882,-203.36360372,0.0004869,4]
[355865015,1741646846903,-1662.32,0.0004869,10]
[355865016,1741646846925,-1953.13,0.0004869,10]
[355865017,1741646846946,-1627.61,0.0004869,10]
[355865018,1741646847275,-5280.58,0.00048698,120]
[355865019,1741646847300,-164.35175231,0.00048699,120]
[355865020,1741646847326,-500.0,0.00048699,2]
[355865021,1741646847351,-500.0,0.00048699,2]
[355865022,1741646847377,-500.0,0.00048699,2]
[355865023,1741646847404,-233.24170488,0.00048699,2]
[355865024,1741646847426,-2000.0,0.000487,120]
[355865025,1741646847446,-3000.0,0.000487,2]
[355865026,1741646847467,-1000.0,0.000487,60]
[355865027,1741646847490,-85817.27149866,0.000487,2]
[355865028,1741646854092,-199.19874604,0.000486,28]
[355865029,1741646854116,-111631.47190196,0.000487,2]
[355865118,1741647038323,-158.473811,0.0004617,3]
[355865119,1741647038333,-560.7590407,0.00047823,4]
[355865120,1741647038342,-1960.25731062,0.000479,11]
[355865121,1741647038352,-170.0,0.00048,90]
[355865122,1741647038362,-500.0,0.00048501,6]
[355865123,1741647038372,-398.0,0.0004861,2]
[355865124,1741647038381,-500.0,0.00048638,6]
[355865125,1741647038391,-500.0,0.0004869,30]
[355865126,1741647038401,-500.0,0.00048699,2]
[355865127,1741647038411,-500.0,0.00048699,2]
[355865128,1741647038420,-24551.25659938,0.000487,2]
[355865129,1741647038431,-564.77,0.000487,30]
[355865130,1741647038440,-150.0,0.000487,120]
[355865131,1741647038450,-687.8,0.000487,30]
[355865132,1741647038459,-52438.5501017,0.000487,120]
[355865135,1741647040480,-3116.4498983,0.000487,120]
[355865136,1741647040490,-800.0,0.00048709,14]
[355865137,1741647040499,-161.03017843,0.00048712,120]
[355865138,1741647040509,-712.234994,0.00048722,97]
[355865139,1741647040518,-1068.82713965,0.00048753,4]
[355865140,1741647040527,-500.0,0.00048773,10]
[355865141,1741647040537,-500.0,0.00048773,10]
[355865142,1741647040547,-500.0,0.00048773,10]
[355865143,1741647040556,-500.0,0.00048775,6]
[355865144,1741647040565,-1356.34,0.0004878,10]
[355865145,1741647040575,-1130.29,0.0004878,10]
[355865146,1741647040584,-941.91,0.0004878,10]
[355865147,1741647040593,-2641.92722862,0.0004879,4]
[355865173,1741647043469,-21.50344815,0.00048,90]
[355865181,1741647046364,-148.49655185,0.00048,90]
[355865182,1741647046374,-9115.17130758,0.0004879,4]
[355865183,1741647046385,-410.38173312,0.0004879,4]
[355865184,1741647046395,-1000.0,0.00048798,120]
[355865185,1741647046404,-228.91193969,0.00048798,2]
[355865186,1741647046413,-274.69432763,0.00048798,2]
[355865187,1741647046422,-1247.97421213,0.00048799,47]
[355865189,1741647412021,200.0,0.000269,3]
[355865190,1741647417904,200.0,0.000269,3]
[355865191,1741647443259,200.0,0.000269,3]
[355865192,1741647468673,4102.53108733,0.00027,10]
[355865193,1741647509663,5576.03737647,0.000271,30]
[355865194,1741647520935,10000.0,0.00025,10]
[355865195,1741647530085,10000.0,0.00025,10]
[355865196,1741647545816,5000.0,0.00025,10]
[355865197,1741647619609,230.45,0.000249,2]
[355865199,1741647646683,200.0,0.000249,2]
[355865203,1741647956101,-5897.46891267,0.00027,10]
[355865204,1741647956128,-4423.96262353,0.000271,30]
[355865205,1741647956167,-754.15005029,0.00032783,2]
[355865206,1741647956191,-159.742477,0.0003589,2]
[355865207,1741647956214,-1812.74358742,0.0004,15]
[355865208,1741647956238,-1812.74358742,0.000424,15]
[355865209,1741647956261,-159.742477,0.0004263,2]
[355865210,1741647956285,-4000.0,0.00043517,2]
[355865211,1741647956308,-225.90774289,0.00044449,2]
[355865212,1741647956330,-1963.80555304,0.000448,19]
[355865213,1741647956351,-150.0,0.00046253,2]
[355865214,1741647956372,-150.0,0.00046253,2]
[355865215,1741647956394,-398.0,0.00046253,2]
[355865216,1741647956415,-500.67856291,0.000466,2]
[355865217,1741647956436,-2114.86751866,0.000472,23]
[355865218,1741647956458,-183.44269038,0.00047499,80]
[355865219,1741647956485,-500.0,0.00047499,2]
[355865220,1741647956510,-500.0,0.00047499,2]
[355865221,1741647956536,-500.0,0.00047499,2]
[355865222,1741647956562,-500.0,0.00047499,2]
[355865223,1741647956586,-500.0,0.00047499,2]
[355865224,1741647956615,-500.0,0.00047499,2]
[355865225,1741647956641,-507.9531422,0.00047499,2]
[355865226,1741647956667,-500.0,0.00047499,2]
[355865227,1741647956692,-500.0,0.00047499,2]
[355865228,1741647956718,-500.0,0.00047499,2]
[355865229,1741647956743,-500.0,0.00047499,2]
[355865230,1741647956766,-5000.0,0.000475,120]
[355865231,1741647956787,-5000.0,0.000475,120]
[355865232,1741647956809,-5000.0,0.000475,120]
[355865233,1741647956830,-4000.0,0.000475,120]
[355865234,1741647956852,-870.29,0.00047506,120]
[355865235,1741647956874,-870.29,0.00047506,120]
[355865236,1741647956896,-870.29,0.00047506,120]
[355865237,1741647956917,-870.29,0.00047506,120]
[355865238,1741647956939,-870.29,0.00047506,120]
[355865239,1741647956962,-870.29,0.00047506,120]
[355865240,1741647956983,-870.29,0.00047506,120]
[355865241,1741647957007,-870.29,0.00047506,120]
[355865242,1741647957032,-870.29,0.00047506,120]
[355865243,1741647957053,-870.29,0.00047506,120]
[355865244,1741647957075,-870.29,0.00047506,120]
[355865245,1741647957098,-870.29,0.00047506,120]
[355865246,1741647957121,-870.29,0.00047506,120]
[355865247,1741647957147,-870.29,0.00047506,120]
[355865248,1741647957169,-870.29,0.00047506,120]
[355865249,1741647957192,-870.29,0.00047506,120]
[355865250,1741647957215,-870.29,0.00047506,120]
[355865251,1741647957238,-870.29,0.00047506,120]
[355865252,1741647957259,-870.29,0.00047506,120]
[355865253,1741647957284,-870.29,0.00047506,120]
[355865254,1741647957308,-870.29,0.00047506,120]
[355865255,1741647957332,-870.29,0.00047506,120]
[355865256,1741647957354,-870.29,0.00047506,120]
[355865257,1741647957377,-870.35994705,0.00047506,120]
[355865258,1741647957398,-500.0,0.0004755,10]
[355865259,1741647957419,-500.0,0.00047799,120]
[355865260,1741647957441,-500.0,0.00047799,120]
[355865261,1741647957463,-500.0,0.00047799,120]
[355865262,1741647957484,-500.0,0.00047799,120]
[355865263,1741647957506,-500.0,0.00047799,120]
[355865264,1741647957528,-500.0,0.00047799,120]
[355865265,1741647957550,-500.0,0.00047799,120]
[355865266,1741647957573,-500.0,0.00047799,120]
[355865267,1741647957595,-500.0,0.00047799,120]
[355865268,1741647957617,-600.41,0.00047799,120]
[355865269,1741647957639,-420.5692805,0.00047823,4]
[355865270,1741647957661,-500.0,0.00047945,10]
[355865271,1741647957682,-799.3854481,0.00048077,30]
[355865272,1741647957704,-772.25,0.00048149,60]
[355865273,1741647957725,-716.21616889,0.00048502,2]
[355865274,1741647957746,-500.0,0.00048551,6]
[355865275,1741647957768,-186.0,0.0004861,2]
[355865276,1741647957791,-1906.96811391,0.0004865,120]
[355865277,1741647957812,-10000.0,0.0004865,120]
[355865278,1741647957835,-151.0,0.00048671,2]
[355865279,1741647957857,-600.0,0.00048671,2]
[355865280,1741647957879,-572.84,0.0004868,10]
[355865281,1741647957900,-500.0,0.00048688,6]
[355865282,1741647957922,-585.06,0.00048688,10]
[355865283,1741647957943,-687.41,0.00048688,10]
[355865284,1741647957964,-1908.14,0.00048689,2]
[355865285,1741647957987,-2565.18513516,0.0004869,4]
[355865286,1741647958008,-204.27723514,0.0004869,4]
[355865287,1741647958031,-167.7966245,0.00048697,30]
[355865288,1741647958052,-167.7966245,0.00048697,30]
[355865289,1741647958073,-55555.0,0.00048698,120]
[355865290,1741647958095,-168.47,0.00048698,30]
[355865291,1741647958119,-5060.55,0.00048699,120]
[355865292,1741647958143,-2727.81759199,0.000487,2]
[355865323,1741648232484,-333.78570861,0.00046598,2]
[355865324,1741648232494,-1894.91540044,0.000469,10]
[355865325,1741648232504,-500.0,0.00047799,120]
[355865326,1741648232517,-315.4269604,0.00047823,4]
[355865327,1741648232527,-170.0,0.00048,90]
[355865328,1741648232537,-1555.0,0.000485,120]
[355865329,1741648232547,-690.86794418,0.00048514,97]
[355865330,1741648232556,-500.0,0.00048551,6]
[355865331,1741648232566,-209.65947133,0.000486,120]
[355865332,1741648232575,-690.86794418,0.00048614,90]
[355865333,1741648232584,-398.0,0.00048633,2]
[355865334,1741648232593,-600.0,0.00048671,2]
[355865335,1741648232603,-500.0,0.00048688,6]
[355865336,1741648232613,-1197.0863964,0.0004869,4]
[355865337,1741648232622,-477.37,0.0004869,10]
[355865338,1741648232632,-397.81,0.0004869,10]
[355865339,1741648232641,-331.51,0.0004869,10]
[355865340,1741648232650,-150.0,0.00048691,14]
[355865341,1741648232660,-500.0,0.00048695,2]
[355865342,1741648232670,-556.43923802,0.00048695,2]
[355865343,1741648232680,-500.0,0.00048695,2]
[355865344,1741648232689,-55555.0,0.00048696,120]
[355865345,1741648232698,-4849.7,0.00048699,120]
[355865346,1741648232708,-56021.54558414,0.000487,2]
[355865349,1741648239035,-37145.59605923,0.000487,2]
[355865350,1741648239235,-1137.952088,0.000487,2]
[355865351,1741648239247,-2327.9462933,0.000487,2]
[355865396,1741648246484,-276.25,0.0004869,10]
[355865398,1741648246494,-17551.83369622,0.000487,2]
[355865401,1741648246514,-398.06304,0.000487,2]
[355865402,1741648311615,159.742477,0.0003589,2]
[355865404,1741648331165,5000.0,0.00027,60]
[355865405,1741648339005,1030.40424195,0.00027,60]
[355865406,1741648347825,5000.0,0.00027,60]
[355865407,1741648462302,500.0,0.00027,60]
[355865408,1741648490505,500.0,0.0002501,2]
[355865409,1741648513552,500.0,0.00027,60]
[355865423,1741649199332,-247.02867304,0.0003,30]
[355865424,1741649199353,-121.52065921,0.0003,30]
[355865425,1741649221628,980.78454405,0.000249,2]
[355865435,1741649297975,10000.0,0.0002501,2]
[355865445,1741649350083,-769.34834918,0.0002801,2]
[355865446,1741649350104,-773.0773668,0.00029,10]
[355865447,1741649350125,-980.78454405,0.000299,2]
[355865448,1741649350146,-248.38432538,0.0003,60]
[355865449,1741649350168,-125.50801383,0.0003,30]
[355865450,1741649350190,-247.02867304,0.0003,30]
[355865451,1741649350212,-288.42890065,0.0003,30]
[355865452,1741649356122,-211.57109935,0.0003,30]
[355865453,1741649356145,-980.78454405,0.000349,2]
[355865454,1741649356167,-159.742477,0.0003589,2]
[355865455,1741649356191,-500.0,0.00040958,120]
[355865456,1741649356214,-500.0,0.00041232,120]
[355865457,1741649356235,-2484.50918751,0.00041971,2]
[355865458,1741649356258,-4000.0,0.00041971,2]
[355865459,1741649356279,-275.7127957,0.00042793,2]
[355865460,1741649356301,-159.742477,0.00043112,2]
[355865461,1741649356323,-160.0,0.0004326,2]
[355865462,1741649356344,-195.0,0.000439,2]
[355865463,1741649356365,-3225.10548872,0.000439,2]
[355865515,1741649432597,-236.5702203,0.00047823,4]
[355865517,1741649432607,-1831.75155372,0.000479,11]
[355865519,1741649432617,-200.0,0.00048,2]
[355865521,1741649432627,-170.0,0.00048,90]
[355865523,1741649432637,-945.29830011,0.0004809,2]
[355865525,1741649432646,-161.03017844,0.00048164,120]
[355865527,1741649432656,-466.0322314,0.00048351,30]
[355865529,1741649432666,-592.1224726,0.00048351,30]
[355865531,1741649432677,-162.0833218,0.00048351,30]
[355865533,1741649432686,-433.5205657,0.00048351,30]
[355865534,1741649432696,-171.861,0.00048457,83]
[355865535,1741649432705,-155.3619476,0.00048471,30]
[355865536,1741649432715,-155.3619476,0.00048471,30]
[355865537,1741649432725,-155.3619476,0.00048471,30]
[355865538,1741649432734,-155.3619476,0.00048471,30]
[355865539,1741649432744,-155.3619476,0.00048471,30]
[355865541,1741649432754,-155.3619476,0.00048471,30]
[355865543,1741649432764,-155.3619476,0.00048471,30]
[355865545,1741649432774,-155.3619476,0.00048471,30]
[355865547,1741649432783,-155.3619476,0.00048471,30]
[355865549,1741649432792,-155.3619476,0.00048471,30]
[355865551,1741649432802,-155.3619476,0.00048471,30]
[355865553,1741649432824,-155.3619476,0.00048471,30]
[355865555,1741649432834,-155.3619476,0.00048471,30]
[355865557,1741649432843,-155.3619476,0.00048471,30]
[355865558,1741649432853,-799.38,0.0004849,10]
[355865559,1741649432864,-43027.22886497,0.000485,36]
[355865560,1741649432877,-5640.87808129,0.000485,36]
[355865562,1741649432915,-3084.01296539,0.000485,36]
[355865610,1741649446667,-500.0,0.0004737,120]
[355865611,1741649446677,-163.1231436,0.000484,2]
[355865612,1741649446688,-163.12314358,0.00048413,2]
[355865613,1741649446698,-163.12314358,0.00048426,2]
[355865614,1741649446708,-581.92,0.0004849,10]
[355865615,1741649446718,-500.0,0.00048499,2]
[355865616,1741649446727,-500.0,0.00048499,2]
[355865617,1741649446737,-500.0,0.00048499,2]
[355865618,1741649446747,-500.0,0.00048499,2]
[355865619,1741649446757,-500.0,0.00048499,2]
[355865620,1741649446767,-204.32310351,0.00048499,2]
[355865621,1741649446777,-500.0,0.00048499,2]
[355865622,1741649446787,-500.0,0.00048499,2]
[355865623,1741649446797,-500.0,0.00048499,2]
[355865624,1741649446807,-500.0,0.00048499,2]
[355865625,1741649446816,-500.0,0.00048499,2]
[355865626,1741649446826,-500.0,0.00048499,2]
[355865627,1741649446839,-18917.22836271,0.000485,36]
[355865641,1741649566827,-1000.0,0.00046755,120]
[355865663,1741650547121,-500.0,0.0003,30]
[355865664,1741650547148,-182.44879604,0.000409,120]
[355865665,1741650547172,-171.0,0.00041,14]
[355865666,1741650547196,-500.0,0.0004151,120]
[355865667,1741650547219,-500.0,0.00042123,120]
[355865668,1741650547244,-172.0537067,0.00042187,2]
[355865669,1741650547267,-1238.2676894,0.00042555,2]
[355865670,1741650547289,-500.0,0.00043054,120]
[355865671,1741650547312,-171.0,0.00043151,90]
[355865672,1741650588704,159.672241,0.0003589,2]
[355865673,1741650588915,159.672241,0.00043667,2]
[355865721,1741650632704,-379.03723242,0.00044655,2]
[355865723,1741650632714,-170.96276758,0.000449,10]
[355865744,1741650638900,-1917.50997029,0.000449,10]
[355865745,1741650638911,-480.0,0.00045,30]
[355865746,1741650638933,-1963.80555304,0.00046521,19]
[355865747,1741650638945,-513.07644975,0.00046755,120]
[355865748,1741650638962,-158.473811,0.00046847,2]
[355865749,1741650638974,-158.473811,0.0004704,90]
[355865750,1741650638985,-162.0733927,0.00047115,30]
[355865751,1741650638997,-155.3619476,0.0004765,30]
[355865752,1741650639008,-155.3619476,0.0004765,30]
[355865753,1741650639019,-155.3619476,0.0004765,30]
[355865754,1741650639030,-177.3981311,0.00047822,4]
[355865755,1741650639042,-2935.78071728,0.00047999,120]
[355865781,1741650643257,-1.298291,0.00047999,120]
[355865790,1741650643987,-2062.92099172,0.00047999,120]
[355865791,1741650643998,-2360.72380672,0.00048,120]
[355865792,1741650644010,-3087.85629332,0.00048,120]
[355865793,1741650644035,-111.00217423,0.00048,120]
[355865818,1741650678783,1243.0,0.000299,2]
[355865819,1741650701867,1379.044413,0.00042248,2]
[355865843,1741651627178,-391.62636746,0.00027,14]
[355865844,1741651627201,-725.15,0.000372,120]
[355865845,1741651627229,-2018.85697997,0.000379,8]
[355865846,1741651627252,-171.0,0.00041,14]
[355865847,1741651627275,-800.0,0.00043419,120]
[355865848,1741651627298,-800.0,0.0004342,120]
[355865849,1741651627322,-500.0,0.00043424,120]
[355865850,1741651627343,-97.99091227,0.0004421,120]
[355865851,1741651641085,-412.94828755,0.00041324,2]
[355865852,1741651641107,-30.72612363,0.0004421,120]
[355865854,1741651746140,-159.672241,0.0003589,2]
[355865855,1741651765280,1951.56174714,0.000439,9]
[355865859,1741651788893,1812.9243376,0.00043244,19]
[355865904,1741651832880,-199.0,0.00044,90]
[355865906,1741651832891,-489.96220586,0.0004421,120]
[355865908,1741651832903,-181.32075824,0.0004421,120]
[355865910,1741651832913,-78.82978334,0.00044246,120]
[355865921,1741651833010,-421.17021666,0.00044246,120]
[355865923,1741651833022,-210.91223031,0.00044418,2]
[355865924,1741651833033,-564.25103178,0.0004452,120]
[355865925,1741651833044,-200.0,0.00044625,2]
[355865926,1741651833055,-121.18315652,0.00044996,120]
[355866149,1741651847032,-103.03510948,0.00044996,120]
[355866150,1741651847042,-159.672241,0.00045081,2]
[355866151,1741651847052,-348.91756727,0.0004509,120]
[355866167,1741651937491,275.29885837,0.0004242,2]
[355866168,1741651940042,158.0,0.00043,90]
[355866190,1741652814449,200.0,0.00027,60]
[355866191,1741652836120,-160.0,0.00032,120]
[355866192,1741652836143,-350.0,0.0004,5]
[355866193,1741652836165,-1812.74358742,0.0004,15]
[355866194,1741652836189,-182.973018,0.00040549,2]
[355866195,1741652836212,-500.0,0.00041232,120]
[355866196,1741652836235,-151.08613851,0.000419,120]
[355866197,1741652836257,-153.0,0.00042,120]
[355866198,1741652836279,-302.12393123,0.000424,15]
[355866199,1741652836302,-183.53257225,0.00042525,2]
[355866200,1741652836325,-158.55098,0.00042715,120]
[355866201,1741652836350,-835.83299153,0.00042784,120]
[355866202,1741652840098,-44.16700847,0.00042784,120]
[355866203,1741652840123,-133.46804781,0.00042785,19]
[355866204,1741652842124,-175.17679623,0.00040684,2]
[355866205,1741652842152,-37.0807106,0.00042785,19]
[355866209,1741652926462,160.16007699,0.00025,2]
[355866210,1741652954084,-1887.42296062,0.0003,60]
[355866211,1741652954106,-159.820935,0.0003589,2]
[355866212,1741652954127,-500.0,0.00042876,120]
[355866213,1741652954150,-1901.77186947,0.000429,9]
[355866214,1741652954176,-500.0,0.0004315,120]
[355866215,1741652954198,-500.0,0.00043424,120]
[355866216,1741652976428,500.0,0.00043506,120]
[355866217,1741652981213,645.07756037,0.00043919,2]
[355866319,1741653032221,-680.0,0.00043998,120]
[355866321,1741653032233,-311.0,0.00044,30]
[355866323,1741653032243,-780.0,0.0004421,120]
[355866325,1741653032253,-645.07756037,0.0004437,2]
[355866327,1741653032264,-88254.30342548,0.00044406,47]
[355866329,1741653032275,-15568.29314569,0.00044406,2]
[355866331,1741653032285,-645.07756037,0.00044426,2]
[355866333,1741653032296,-818.72063472,0.00044444,3]
[355866335,1741653032306,-539.66872402,0.00044444,28]
[355866337,1741653032317,-2733.0711422,0.00044444,2]
[355866339,1741653032328,-5762.83193635,0.00044445,2]
[355866341,1741653032338,-2893.77922948,0.00044455,2]
[355866343,1741653032348,-200.0,0.000445,2]
[355866345,1741653032358,-165.76,0.00044524,2]
[355866347,1741653032368,-165.76,0.00044524,2]
[355866349,1741653032378,-5948.46,0.00044524,10]
[355866351,1741653032388,-262.5,0.00044524,30]
[355866352,1741653032398,-4957.05,0.00044524,10]
[355866353,1741653032407,-218.75,0.00044524,30]
[355866354,1741653032418,-4130.88,0.00044524,10]
[355866356,1741653032427,-182.29,0.00044524,30]
[355866357,1741653032437,-135748.87398962,0.00044534,36]
[355866358,1741653032446,-168.92,0.00044534,2]
[355866359,1741653032455,-168.92,0.00044534,2]
[355866360,1741653032466,-168.92,0.00044534,2]
[355866362,1741653032477,-500.0,0.00044544,2]
[355866364,1741653032490,-500.0,0.00044544,2]
[355866366,1741653032500,-500.0,0.00044544,2]
[355866368,1741653032511,-500.0,0.00044544,2]
[355866370,1741653032522,-500.0,0.00044544,2]
[355866372,1741653032533,-500.0,0.00044544,2]
[355866374,1741653032544,-448.70507651,0.00044544,2]
[355866376,1741653032555,-500.0,0.00044544,2]
[355866378,1741653032565,-500.0,0.00044544,2]
[355866380,1741653032576,-500.0,0.00044544,2]
[355866382,1741653032587,-500.0,0.00044544,2]